{"text_format":"1","workbook":"xlsx","n_sheets":3,"sheets":["Recent","Own","Sheet1"],"not_rendered":{"charts":0,"images":0,"macros":1,"external_links":0,"defined_names":152,"comments":0,"pivot_tables":0},"unopened":[],"bounds":{"document_bytes":16777216,"sheet_cells":100000,"rows_first":2000,"rows_last":500,"rows_between":2000,"halvings":0,"cell_chars":16384,"cell_head_chars":4096},"cells_cut":0,"cells_raw":0,"read":"whole","date_system":"1900"}

{"sheet":"Recent","index":0,"n_rows":101,"n_cols":7,"rows_kept":101,"cut":false,"hidden":false,"merged":[]}
["NFT Name","Link","Created at","Sold Count","Own","Days",7]
["Writing NFT - 逆轉被駭資產：以太坊的可逆交易 ERC-20R、去中心化法庭 DAO - 區塊勢","https://liker.land/nft/class/likenft1w8j2jd4nd5tagcq8hz49cpxhtnk49d5gkhyfs4jx56ps9ra5p9xqwgsyt6","2022-10-18T00:32:25Z",500,{"$f":"NOT(ISNA(VLOOKUP(A2,Own!A:A,1,FALSE)))","v":false}]
["Writing NFT - 2022 蚵寮漁村小搖滾 - Kuàn-ka (@ttt50966)","https://liker.land/nft/class/likenft16mx4vppy9lgfg8n4hrlhfedj3ceaepsr69znjdahpumnsezckz9s3tshxx","2022-10-17T16:09:41Z",499,{"$f":"NOT(ISNA(VLOOKUP(A3,Own!A:A,1,FALSE)))","v":true}]
["Writing NFT - 台東最糟也最棒的書店 —— 晃晃書店","https://liker.land/nft/class/likenft1ghwaeqyz8kwxyvkcafkfy900q8m7dj2tk8kz7u0p6f0cpum740gqka5ewr","2022-10-17T15:59:39Z",500,{"$f":"NOT(ISNA(VLOOKUP(A4,Own!A:A,1,FALSE)))","v":false}]
["Writing NFT - 台東咖啡故事：只想帶給別人幸福的咖啡店 ── 兔子吐泡泡（回憶版）","https://liker.land/nft/class/likenft1qff9d27pfnj0n2e0ac809vhth4jydjgtl0y3gqp569g93m54rspq2wknu7","2022-10-17T15:58:33Z",500,{"$f":"NOT(ISNA(VLOOKUP(A5,Own!A:A,1,FALSE)))","v":false}]
["Writing NFT - 在台東，看海發呆去","https://liker.land/nft/class/likenft1k7ppad39v8045qtfq0qgk3vtnp6p3fwekhgycmw6jh7a625rrcuqacacpw","2022-10-17T15:57:45Z",500,{"$f":"NOT(ISNA(VLOOKUP(A6,Own!A:A,1,FALSE)))","v":false}]
["Writing NFT - 【文生書法】有橋","https://liker.land/nft/class/likenft1lvntsa5ejqvajn9ckzc3x8ym32uw3mahx3kcuxd22kg02n2lrqdqgdmfea","2022-10-17T14:52:56Z",998,{"$f":"NOT(ISNA(VLOOKUP(A7,Own!A:A,1,FALSE)))","v":false}]
["Writing NFT - 【文生影評】戀戀風塵---既濃又淡的生命力","https://liker.land/nft/class/likenft18qqssutp7rnmp6qz9zy4urevlmp5p0lauj9j7q4frxmv887th97sea6r45","2022-10-17T14:34:56Z",1000,{"$f":"NOT(ISNA(VLOOKUP(A8,Own!A:A,1,FALSE)))","v":false}]
["Writing NFT - 【文生書評】許三觀賣血記---荒謬的群像","https://liker.land/nft/class/likenft1vpfd0qdk2az2uh56rj36k5k7uh93safn3azrq6c78975jh2smv2stvaq9z","2022-10-17T14:14:22Z",998,{"$f":"NOT(ISNA(VLOOKUP(A9,Own!A:A,1,FALSE)))","v":true}]
["Writing NFT - 〔旅行到克羅埃西亞〕秋末的十六湖國家公園散步日記","https://liker.land/nft/class/likenft1s8hk85hc2q79kjnh4pmxvdfz93fdtrnxw9trskcpk25yvx548e5q5qf8x4","2022-10-17T13:20:09Z",500,{"$f":"NOT(ISNA(VLOOKUP(A10,Own!A:A,1,FALSE)))","v":false}]
["Writing NFT - （中學生導讀）法文世界的「白朗峰」：維克多·雨果 - 私の部屋，世界、歷史、人的万華鏡。 (@chtewu)","https://liker.land/nft/class/likenft1a6w2ktuy07tvyzrsl348p4d9el92r44rlr6mt5qmurgumtw289dqj8u25k","2022-10-17T12:56:05Z",498,{"$f":"NOT(ISNA(VLOOKUP(A11,Own!A:A,1,FALSE)))","v":false}]
["Writing NFT - （導讀）偵探推理界的「瑪麗皇后峰」：柯南．道爾 - 私の部屋，世界、歷史、人的万華鏡。 (@chtewu)","https://liker.land/nft/class/likenft1xnvaua2lzp6gwr6ehajxcfgdwfyffxk8yxr5fxm24u4cysj3qtaslz4cp3","2022-10-17T12:52:07Z",498,{"$f":"NOT(ISNA(VLOOKUP(A12,Own!A:A,1,FALSE)))","v":true}]
["Writing NFT - （中學生導讀）西方文學的「聖母峰」：莎士比亞 - 私の部屋，世界、歷史、人的万華鏡。 (@chtewu)","https://liker.land/nft/class/likenft1jcqxuv683ykqgtr0qpw206255pgyt3dcyfw4x309stc5e6p55g8samn60d","2022-10-17T12:48:51Z",499,{"$f":"NOT(ISNA(VLOOKUP(A13,Own!A:A,1,FALSE)))","v":false}]
["Writing NFT - 「逝去的時代」台北三溫暖 Taipei Sauna","https://liker.land/nft/class/likenft15mmuldd6gfywsaqjnwqlp7xm3fckjyw0ejm8lc0ujqs6av8x9v3s8ndcvz","2022-10-17T10:23:29Z",994,{"$f":"NOT(ISNA(VLOOKUP(A14,Own!A:A,1,FALSE)))","v":true}]
["Writing NFT - 「逝去的時代」台北三溫暖 Taipei Sauna","https://liker.land/nft/class/likenft1ud4gdd2vlkq9jempplvj37pc9f839fkj2hk5pph5xlhqsjtrlxfqdlfd9m","2022-10-17T09:31:56Z",0,{"$f":"NOT(ISNA(VLOOKUP(A15,Own!A:A,1,FALSE)))","v":true}]
["Writing NFT - 【365天的知名壽星】酒客、貓奴、京都人。 - 私の部屋，世界、歷史、人的万華鏡。 (@chtewu)","https://liker.land/nft/class/likenft1h9enk8uq362w9p5tk7gkggq4j7chs40ndg6nrern7l5t49a7kges77uf55","2022-10-16T12:24:26Z",500,{"$f":"NOT(ISNA(VLOOKUP(A16,Own!A:A,1,FALSE)))","v":false}]
["Writing NFT - 【餐桌隨筆】古道照顏色，三杯雞。 - 私の部屋，世界、歷史、人的万華鏡。 (@chtewu)","https://liker.land/nft/class/likenft1jye3zfmhp9mpww3gjcz6sarv2juddgxlzzvy330emkm86rd7dj2qke9x2p","2022-10-16T12:19:09Z",499,{"$f":"NOT(ISNA(VLOOKUP(A17,Own!A:A,1,FALSE)))","v":false}]
["Writing NFT - 在旅途中尋找最珍貴的禮物 - 第十三章","https://liker.land/nft/class/likenft1nae0wnqq3z8w69j5cqkk0v0cv077pkp4nhy64k6s9hh6lqdk0kvq4sf8hu","2022-10-16T06:12:54Z",1000,{"$f":"NOT(ISNA(VLOOKUP(A18,Own!A:A,1,FALSE)))","v":false}]
["Writing NFT - 實體與虛擬出版之間的抉擇","https://liker.land/nft/class/likenft1v0n75ttfhhj2znxf2grmvefqavvj7qy6sut62asdk7k4nkp5yuzqnvdlm3","2022-10-16T01:47:42Z",500,{"$f":"NOT(ISNA(VLOOKUP(A19,Own!A:A,1,FALSE)))","v":true}]
["Writing NFT - 亞皆老號","https://liker.land/nft/class/likenft1a4hvq4ny3vrtyk5uakdll7kqkn6rp4p2sxar2hlq8m6t24axrwdseskvsl","2022-10-15T17:17:51Z",1000,{"$f":"NOT(ISNA(VLOOKUP(A20,Own!A:A,1,FALSE)))","v":false}]
["Writing NFT - 世界所有的對話都是文學","https://liker.land/nft/class/likenft17put74vwxxjxmeu0gcxfg4lttp33ygns59h8q6p88vm5n9q7kr7q6ptnd5","2022-10-15T17:15:30Z",1000,{"$f":"NOT(ISNA(VLOOKUP(A21,Own!A:A,1,FALSE)))","v":false}]
["Writing NFT - 天下嘉農！吳昌征！","https://liker.land/nft/class/likenft1guzzpd557v50n2wvv4d3wtw70ppf9ktj7vgqz7jzh2x8pxaqp7vqqm6wxd","2022-10-15T15:54:19Z",996,{"$f":"NOT(ISNA(VLOOKUP(A22,Own!A:A,1,FALSE)))","v":false}]
["Writing NFT - 【英皇系列第三講】不愛江山愛美人，愛德華八世。","https://liker.land/nft/class/likenft1ttu4sv9hy099g7t9qmnhuahdpxgfhr7cj8fttcqcrrhfu7znddvq534fdd","2022-10-15T15:52:04Z",998,{"$f":"NOT(ISNA(VLOOKUP(A23,Own!A:A,1,FALSE)))","v":false}]
["Writing NFT - 【英皇系列第四講】王者天下，喬治五世","https://liker.land/nft/class/likenft1n4m92stesz878ttykdvc5cgagmht2p8ps0l4rqgjuv7zwnqdsyqshnsfm6","2022-10-15T15:49:35Z",998,{"$f":"NOT(ISNA(VLOOKUP(A24,Own!A:A,1,FALSE)))","v":false}]
["Writing NFT - EIDOS Cafe 晴境易得咖啡館","https://liker.land/nft/class/likenft18x7lxjg0j5szv4hzyapre0r7zeqv9vkrdkdnm5njq2lx8sjkfazsyaku6w","2022-10-15T15:08:36Z",1000,{"$f":"NOT(ISNA(VLOOKUP(A25,Own!A:A,1,FALSE)))","v":false}]
["Writing NFT - 那條路，通往自由。","https://liker.land/nft/class/likenft1aaztl9u7exn0s65pnf7m2v0jm43ujdzgwvlctuu6yyhh7uv4pztqx0srrh","2022-10-15T13:01:36Z",998,{"$f":"NOT(ISNA(VLOOKUP(A26,Own!A:A,1,FALSE)))","v":false}]
["Writing NFT - 死過一次的台灣，我們。","https://liker.land/nft/class/likenft1w5xen8mhx6q33fxskt59x6fkuyc9hgrc0twqhxf7x47gylhce0gsmmddsj","2022-10-15T12:59:18Z",1000,{"$f":"NOT(ISNA(VLOOKUP(A27,Own!A:A,1,FALSE)))","v":false}]
["Writing NFT - 【英皇系列第五講】英倫愛未眠，愛德華七世（下）","https://liker.land/nft/class/likenft12qnex54rag8vxk36rwtmw7lpv7lxyus00j7hjwzpwzppkzyml07s3qlnns","2022-10-15T12:57:02Z",1000,{"$f":"NOT(ISNA(VLOOKUP(A28,Own!A:A,1,FALSE)))","v":false}]
["Writing NFT - 【英皇系列第五講】英倫愛未眠，愛德華七世（上）","https://liker.land/nft/class/likenft1y32zremrkuqu842ttpcsed8c0c9nu2xplktehwuahy0d6hfk42cswtac0a","2022-10-15T12:54:56Z",1000,{"$f":"NOT(ISNA(VLOOKUP(A29,Own!A:A,1,FALSE)))","v":false}]
["Writing NFT - 《慕尼黑協定》，誰理你們？｜方格子 vocus","https://liker.land/nft/class/likenft17hv4av7swjd0w0mmq2f9s393w2jgtkcwgvt7ch79kkkq27z4qwzqq40e73","2022-10-15T12:52:15Z",500,{"$f":"NOT(ISNA(VLOOKUP(A30,Own!A:A,1,FALSE)))","v":false}]
["Writing NFT - On This Day，Perfect Game。 - 私の部屋，世界、歷史、人的万華鏡。 (@chtewu)","https://liker.land/nft/class/likenft1ng0r2ce0g0l58kwuj35x97yw6fr08ldng4uyx4zzzw5ywxne8nysmz4jdx","2022-10-15T12:46:52Z",500,{"$f":"NOT(ISNA(VLOOKUP(A31,Own!A:A,1,FALSE)))","v":false}]
["Writing NFT - 婚禮說（姐姐的婚禮致詞）","https://liker.land/nft/class/likenft1q5n8uur2s6kzd47s8h7aqrap6pz6jpnshruspth9r3jkcsqmymnszxuk90","2022-10-15T10:41:14Z",1000,{"$f":"NOT(ISNA(VLOOKUP(A32,Own!A:A,1,FALSE)))","v":false}]
["Writing NFT - 婚禮說（姐姐的婚禮致詞）","https://liker.land/nft/class/likenft1fvq3940vtpfyewkkmkz80w93flxtlnjpmw73r22r42phkw68tk2sfzdk94","2022-10-15T10:35:30Z",0,{"$f":"NOT(ISNA(VLOOKUP(A33,Own!A:A,1,FALSE)))","v":false}]
["Writing NFT - 婚禮說（姐姐的婚禮致詞）","https://liker.land/nft/class/likenft1tdjgy4daed9zjt82laqnuwn4309gfzsv4lg9u4errxpswc4th6csx2s8rz","2022-10-15T10:33:49Z",0,{"$f":"NOT(ISNA(VLOOKUP(A34,Own!A:A,1,FALSE)))","v":false}]
["Writing NFT - 婚禮說（姐姐的婚禮致詞）","https://liker.land/nft/class/likenft1gl44jwnxnmcsfx6m37th42wnqt30mn936fqm5gnaqcwg6hsq6c6ssewlrw","2022-10-15T10:12:15Z",0,{"$f":"NOT(ISNA(VLOOKUP(A35,Own!A:A,1,FALSE)))","v":false}]
["Writing NFT - 在旅途中尋找最珍貴的禮物 - 第十二章","https://liker.land/nft/class/likenft10la5chf3vvzhwv8mqk48d3vu9ysypm88u5qlepfdhtul00mumzxqyzx457","2022-10-15T04:13:42Z",998,{"$f":"NOT(ISNA(VLOOKUP(A36,Own!A:A,1,FALSE)))","v":false}]
["Writing NFT - 在旅途中尋找最珍貴的禮物 - 第十一章","https://liker.land/nft/class/likenft1dschty9htdtza7m0hmz4nhqsnvc2y4l9xtfh8hu9m6neuvtpdf2qpuf4dx","2022-10-15T03:54:20Z",998,{"$f":"NOT(ISNA(VLOOKUP(A37,Own!A:A,1,FALSE)))","v":false}]
["Writing NFT - 在旅途中尋找最珍貴的禮物 - 第十章","https://liker.land/nft/class/likenft1mtmtv0fquvqmqql87aafm4rwsk6xca9nweefz2fyur8z2h3dmzwshp0eg6","2022-10-15T03:53:50Z",998,{"$f":"NOT(ISNA(VLOOKUP(A38,Own!A:A,1,FALSE)))","v":false}]
["Writing NFT - 在旅途中尋找最珍貴的禮物 - 第九章","https://liker.land/nft/class/likenft154dqk7axdceq0m2sn42fx5w2l9tuepey09p4cccuw8v6mh0prdmq8cmet4","2022-10-15T03:52:21Z",998,{"$f":"NOT(ISNA(VLOOKUP(A39,Own!A:A,1,FALSE)))","v":false}]
["Writing NFT - 在旅途中尋找最珍貴的禮物 - 第八章","https://liker.land/nft/class/likenft1gjtdstuk8t0t9ud70fuc85j5jwz4jcmwwc0svc59hzxyvc4htqms2ppflz","2022-10-15T03:50:58Z",998,{"$f":"NOT(ISNA(VLOOKUP(A40,Own!A:A,1,FALSE)))","v":false}]
["Writing NFT - 在旅途中尋找最珍貴的禮物 - 第七章","https://liker.land/nft/class/likenft16xtu0vmrjv4qyu23vjcns5y93j8d49jfwlmhp8mtpzc8ge6222vsgue5rc","2022-10-15T03:50:21Z",998,{"$f":"NOT(ISNA(VLOOKUP(A41,Own!A:A,1,FALSE)))","v":false}]
["Writing NFT - 在旅途中尋找最珍貴的禮物 - 第六章","https://liker.land/nft/class/likenft1k4d8v6drn645jw34ph5tl5ukcczzf8gghuu9w60cv5zz2fcn4wmsvpkugg","2022-10-15T03:49:39Z",998,{"$f":"NOT(ISNA(VLOOKUP(A42,Own!A:A,1,FALSE)))","v":false}]
["Writing NFT - 在旅途中尋找最珍貴的禮物 - 第五章","https://liker.land/nft/class/likenft1nvu9vul5aj7v2r74yuduvx3u4j94rtlvkc0ygyerke2wkuajqjgqnmrmvr","2022-10-15T03:48:56Z",998,{"$f":"NOT(ISNA(VLOOKUP(A43,Own!A:A,1,FALSE)))","v":false}]
["Writing NFT - 在旅途中尋找最珍貴的禮物 - 第四章","https://liker.land/nft/class/likenft1zsmg3swwzg7sehdft86wrdyt5frpjd0urf24fnu05ehskz59sg9qnq440t","2022-10-15T03:44:19Z",998,{"$f":"NOT(ISNA(VLOOKUP(A44,Own!A:A,1,FALSE)))","v":false}]
["Writing NFT - 在旅途中尋找最珍貴的禮物 - 第三章","https://liker.land/nft/class/likenft1reyx5d0p8hexyzresmwmayprl0dkyxf0hzjc8lfj92fcdcf5mweq6lrvdt","2022-10-15T03:42:02Z",998,{"$f":"NOT(ISNA(VLOOKUP(A45,Own!A:A,1,FALSE)))","v":false}]
["Writing NFT - 在旅途中尋找最珍貴的禮物 - 第二章","https://liker.land/nft/class/likenft1yh4ch6af706fs3wen7djw5wfryq8f7rz62z23fknhk7wm55pahhsff63k0","2022-10-15T03:38:52Z",998,{"$f":"NOT(ISNA(VLOOKUP(A46,Own!A:A,1,FALSE)))","v":false}]
["Writing NFT - 在旅途中尋找最珍貴的禮物 - 第一章","https://liker.land/nft/class/likenft1cytuck2sq7vl84dw7qak5ya0d7v0t2ys456n73pp9vqw9enka4tqjqm0q5","2022-10-15T03:35:01Z",998,{"$f":"NOT(ISNA(VLOOKUP(A47,Own!A:A,1,FALSE)))","v":true}]
["Writing NFT - （圖文不符）被出賣的丁先生。","https://liker.land/nft/class/likenft1tu8lp4qzu7yrd75x3ptsq3cxhduxev466kav9xap2y5t5c4snj5sdmh5u9","2022-10-14T23:50:12Z",998,{"$f":"NOT(ISNA(VLOOKUP(A48,Own!A:A,1,FALSE)))","v":false}]
["Writing NFT - 【餐桌隨筆】青醬，從發現到創造。","https://liker.land/nft/class/likenft1yksvnpn6udd0gj8swxh8z5agplhfk2aqew8wx3kqrfd6gc9my39s8lpmm4","2022-10-14T23:48:20Z",1000,{"$f":"NOT(ISNA(VLOOKUP(A49,Own!A:A,1,FALSE)))","v":false}]
["Writing NFT - 那一年的10月13日，剛好是星期五......","https://liker.land/nft/class/likenft10h3q6psn8wkyufxwpt06pslu9kr62uznxam55xp364y0plzgcgrskar3kl","2022-10-14T23:44:22Z",998,{"$f":"NOT(ISNA(VLOOKUP(A50,Own!A:A,1,FALSE)))","v":false}]
["Writing NFT - 四季深夜食堂｜辣炒蜆仔製作心得","https://liker.land/nft/class/likenft1z5fkraa7n94k9vkpwctydpjr3ny3ddrrdwp5semvpyrqeh4wzegsrhzq86","2022-10-14T20:18:58Z",1000,{"$f":"NOT(ISNA(VLOOKUP(A51,Own!A:A,1,FALSE)))","v":false}]
["Writing NFT - 「暑假＋創造節慶經濟＋後疫情時代」的電商怎麼玩？ (上)","https://liker.land/nft/class/likenft1vx68e4dj3apwujqhnvjrse7s8khers8xaxymdjytcpsxprmk54zst9cv73","2022-10-14T14:16:02Z",0,{"$f":"NOT(ISNA(VLOOKUP(A52,Own!A:A,1,FALSE)))","v":false}]
["Writing NFT - Mother Fxxkers：叛逆、麻木、頹廢與自嘲火柴人","https://liker.land/nft/class/likenft1gyqxxncjpeev7vylp48xv86jex4h2n57z7l9juu2whtgqalw7fjq7e04v6","2022-10-14T10:07:57Z",1000,{"$f":"NOT(ISNA(VLOOKUP(A53,Own!A:A,1,FALSE)))","v":false}]
["Writing NFT - [同志地圖]龍星 long sing 卡拉OK吧","https://liker.land/nft/class/likenft18wmn947m58hqmd0e4s0lke0zsexx5uvtk03q67w6z6w7jmsv4cksxj35zy","2022-10-14T07:58:55Z",1994,{"$f":"NOT(ISNA(VLOOKUP(A54,Own!A:A,1,FALSE)))","v":false}]
["Writing NFT - [同志歷史]FUNKY Club","https://liker.land/nft/class/likenft18qzl2ta3csgnxmrnmx6pr9tf08m8qln5937xuhz9kng86datz44smrv0ey","2022-10-14T07:55:57Z",994,{"$f":"NOT(ISNA(VLOOKUP(A55,Own!A:A,1,FALSE)))","v":false}]
["Writing NFT - 諏訪內晶子外，最令我激賞的女性小提琴家-希拉蕊．韓","https://liker.land/nft/class/likenft12d6shme86ny2qh2utjyw728hx9n6nzj7rvp6dgnd7jw3nccec27sn7u4l8","2022-10-14T03:59:26Z",1000,{"$f":"NOT(ISNA(VLOOKUP(A56,Own!A:A,1,FALSE)))","v":false}]
["Writing NFT - 屬於台東的小書：台東人的慢靈魂","https://liker.land/nft/class/likenft1hvad8yxlyqqhyrq3w3ahhw0lk3agaxtucpfw825j9zjyy83a9p0q5edxdz","2022-10-14T03:27:53Z",500,{"$f":"NOT(ISNA(VLOOKUP(A57,Own!A:A,1,FALSE)))","v":false}]
["Writing NFT - 那一年的10月13日，剛好是星期五......","https://liker.land/nft/class/likenft1drm2cwp9w2006j4x3jgxx2eqvzkgeagauhg7cfjlfn5c4fpu9l9s5g4k93","2022-10-14T02:59:57Z",0,{"$f":"NOT(ISNA(VLOOKUP(A58,Own!A:A,1,FALSE)))","v":false}]
["Writing NFT - 哩哩扣扣週報 - 2022 Week 04","https://liker.land/nft/class/likenft1e7p9ury056s0vryg0f3ap0q0vmf28wy7q2fz5z0zalxusu0jsjksmxwmne","2022-10-13T15:21:51Z",1000,{"$f":"NOT(ISNA(VLOOKUP(A59,Own!A:A,1,FALSE)))","v":false}]
["Writing NFT - 哩哩扣扣週報 - 2022 Week 03","https://liker.land/nft/class/likenft1acm43xgw9zyj83mpje0x5h3nsaqhc33mewtvsm47s8a2gm9w3zcq405rgp","2022-10-13T15:17:33Z",1000,{"$f":"NOT(ISNA(VLOOKUP(A60,Own!A:A,1,FALSE)))","v":false}]
["Writing NFT - 哩哩扣扣週報 - 2022 Week 02","https://liker.land/nft/class/likenft1kg6pqql4kfxfwm8cpml058qa4adqd0dwkjwh0mg0tdtw76jsxssqlmue8k","2022-10-13T15:12:24Z",1000,{"$f":"NOT(ISNA(VLOOKUP(A61,Own!A:A,1,FALSE)))","v":false}]
["Writing NFT - 哩哩扣扣週報 - 2022 Week 00","https://liker.land/nft/class/likenft1kn436j83t2eyvt0sljqycyk8jtn9667cxs0vk5hd2ppcp6j3z94q2hamhm","2022-10-13T15:01:27Z",1500,{"$f":"NOT(ISNA(VLOOKUP(A62,Own!A:A,1,FALSE)))","v":false}]
["Writing NFT - 哩哩扣扣週報 - 2022 Week 01","https://liker.land/nft/class/likenft1u5ljwnltwepf9zejva42k74zzesq0kq3zw7zdlgukct6f909stwq3t2ftr","2022-10-13T14:50:49Z",1500,{"$f":"NOT(ISNA(VLOOKUP(A63,Own!A:A,1,FALSE)))","v":false}]
["Writing NFT - 鼓勵正版，允許翻版，消滅盜版","https://liker.land/nft/class/likenft120guamj2y89yyxw54yr4u6cly8047e88zgg49v9hjyxjdrx0uqdqk26qgk","2022-10-13T14:45:25Z",500,{"$f":"NOT(ISNA(VLOOKUP(A64,Own!A:A,1,FALSE)))","v":false}]
["Writing NFT - 結集 NFT 書：The whole is greater than the sum of its parts","https://liker.land/nft/class/likenft1tszgcfnfzhkrcky9kxj8uk0vj07vjtctqwh709dddr9g7qezwuas88h9t2","2022-10-13T14:09:59Z",500,{"$f":"NOT(ISNA(VLOOKUP(A65,Own!A:A,1,FALSE)))","v":false}]
["Writing NFT - 哩哩扣扣 #20 ATOM 2.0 難道不是 2.0？","https://liker.land/nft/class/likenft19h5nhjcqzzu5w6expnkg8vv8gvkyyrnz9jtlxrv66sdv0gy3r0eq8p44ul","2022-10-13T13:56:10Z",500,{"$f":"NOT(ISNA(VLOOKUP(A66,Own!A:A,1,FALSE)))","v":false}]
["Writing NFT - 無大台出版實驗的初步構想","https://liker.land/nft/class/likenft10zmc69yaauhke9hnftsr3s3zk88pl5dt9c5zagwzk83ppx9lezcsgmywtr","2022-10-13T13:55:05Z",1000,{"$f":"NOT(ISNA(VLOOKUP(A67,Own!A:A,1,FALSE)))","v":false}]
["Writing NFT - 台灣吉日。當我們不再創作","https://liker.land/nft/class/likenft1ezrjln0p70n6vgk52nkahmklqa4enktgnnvffluvfu788yl93tts0tlvhl","2022-10-13T13:46:36Z",500,{"$f":"NOT(ISNA(VLOOKUP(A68,Own!A:A,1,FALSE)))","v":false}]
["Writing NFT - 十三月／Intro: 十三月亮曆，那是什麼？","https://liker.land/nft/class/likenft12375zms7t6478gtn72mt0anxvc8csng67umlfrn9h39g3pmprplqk2ntz9","2022-10-13T09:24:29Z",500,{"$f":"NOT(ISNA(VLOOKUP(A69,Own!A:A,1,FALSE)))","v":false}]
["Writing NFT - 閒聊／關於順流這件事。","https://liker.land/nft/class/likenft1e09j84ar9cev9wlfsf9mw60c84tc0vxxfc0xx7ptrrvljt07ky5q4qd4vt","2022-10-13T09:22:00Z",500,{"$f":"NOT(ISNA(VLOOKUP(A70,Own!A:A,1,FALSE)))","v":false}]
["Writing NFT - 閒聊／關於順流這件事。","https://liker.land/nft/class/likenft14w4xyxlhkjf687d64wh4n656zmtj7ct06stfe3rc33juy7rfwk7sm80egq","2022-10-13T09:18:12Z",500,{"$f":"NOT(ISNA(VLOOKUP(A71,Own!A:A,1,FALSE)))","v":false}]
["Writing NFT - 籠中港","https://liker.land/nft/class/likenft13yrttd9e37l9gsluy5qxwk8k57cmk052ewg7ephjcnr9ckwdewpq7234ml","2022-10-13T08:46:27Z",3486,{"$f":"NOT(ISNA(VLOOKUP(A72,Own!A:A,1,FALSE)))","v":false}]
["Writing NFT - 詩／夜半的弓道教室","https://liker.land/nft/class/likenft1q6n3f7qalut8c99cu5s6lnqaf9pe8mw832ex4uskt922mawsn0aqm5cyj8","2022-10-13T07:39:22Z",998,{"$f":"NOT(ISNA(VLOOKUP(A73,Own!A:A,1,FALSE)))","v":true}]
["Writing NFT - 第二宇宙辭典，以及虛擬的真實化","https://liker.land/nft/class/likenft1w23r4068dwl9ytzxr2f4cyms3smgstt63cuhpaphph72pcm9gywqysxl6x","2022-10-13T07:28:08Z",998,{"$f":"NOT(ISNA(VLOOKUP(A74,Own!A:A,1,FALSE)))","v":true}]
["Writing NFT - 讀後／小令《監視器的背後是彌勒佛》與若斯諾·孟《喜劇收場》","https://liker.land/nft/class/likenft1ddu90kxsu7ht8u8t94850zpcfcmnw5prkwregrm6pspaugtjw94qsse58d","2022-10-13T07:24:34Z",998,{"$f":"NOT(ISNA(VLOOKUP(A75,Own!A:A,1,FALSE)))","v":true}]
["Writing NFT - 讀後／小令《監視器的背後是彌勒佛》與若斯諾·孟《喜劇收場》","https://liker.land/nft/class/likenft1yqp45sr82eel8la9g4na4m4fhvlnh2eejdt24766rspes02rp25qqgzswc","2022-10-13T07:13:15Z",0,{"$f":"NOT(ISNA(VLOOKUP(A76,Own!A:A,1,FALSE)))","v":true}]
["Writing NFT - 幣安跨鏈橋遭駭：憑空創造 5.7 億美元、BSC 鏈關機、損害控制的代價 - by 許明恩 - 區塊勢","https://liker.land/nft/class/likenft1skr878zan80n239fkjvajdf0kflgjq7lnxuf58vsfew2nsq4fltqj5zukz","2022-10-13T01:09:35Z",500,{"$f":"NOT(ISNA(VLOOKUP(A77,Own!A:A,1,FALSE)))","v":false}]
["Writing NFT - 來一碗鮮蚵湯✔","https://liker.land/nft/class/likenft1qrnk05cfwr2ahn7r5e446am2sm7aqu0p0te2asueuavlkr4sy2cssu0lnf","2022-10-12T17:27:27Z",1000,{"$f":"NOT(ISNA(VLOOKUP(A78,Own!A:A,1,FALSE)))","v":false}]
["Writing NFT - On This Day，Perfect Game。 - 私の部屋，世界、歷史、人的万華鏡。 (@chtewu)","https://liker.land/nft/class/likenft1jxt3gqd5syeq8p6l90fawz5t8muue26z5uf88msn9w7rx9vkrhsqypet56","2022-10-12T14:10:24Z",0,{"$f":"NOT(ISNA(VLOOKUP(A79,Own!A:A,1,FALSE)))","v":false}]
["Writing NFT - Web3.0 身分(PFP) 與 Web3.0 3D 身分(3D Avatars)的研究與分析","https://liker.land/nft/class/likenft133j4cthlcu7wfndk8uzp4psa787c92e7mrx2qr9yxx6vpfd8m3qspgsy98","2022-10-12T13:37:48Z",996,{"$f":"NOT(ISNA(VLOOKUP(A80,Own!A:A,1,FALSE)))","v":false}]
["Writing NFT - 《圖解區塊鏈》原理篇 Part 3","https://liker.land/nft/class/likenft1v0w4j6cnwc24d73hytu3taaxtd7k555vkdjljcxz7h7yqkp46e0ss2xqqe","2022-10-12T13:03:48Z",996,{"$f":"NOT(ISNA(VLOOKUP(A81,Own!A:A,1,FALSE)))","v":false}]
["Writing NFT - 《圖解區塊鏈》原理篇 Part 2","https://liker.land/nft/class/likenft1dcuh67jueg606c0jjazjnpfw57eave7l89sr23n59y95vufhl9kqh36n3e","2022-10-12T12:38:17Z",994,{"$f":"NOT(ISNA(VLOOKUP(A82,Own!A:A,1,FALSE)))","v":false}]
["Writing NFT - 記錄／內在世界生命之花：燼","https://liker.land/nft/class/likenft1pzx8rwqmlpcx9ga0zhg4d3dpxg8k6x8lzjtd43yn96cszvfr7qps3yafn3","2022-10-12T12:06:53Z",500,{"$f":"NOT(ISNA(VLOOKUP(A83,Own!A:A,1,FALSE)))","v":false}]
["Writing NFT - 訊息／生命之花：七方銀河祈禱文。","https://liker.land/nft/class/likenft1ee8e7fwzgvw2an4updmp9ztdufh2h59jxv4c4kg4hzfg6p0nhpls0tm69z","2022-10-12T12:04:00Z",500,{"$f":"NOT(ISNA(VLOOKUP(A84,Own!A:A,1,FALSE)))","v":false}]
["Writing NFT - 訊息／生命之花：七方銀河祈禱文。","https://liker.land/nft/class/likenft1tn0yw3d5dhc7m89wu8t3jlmzddyx8jgp85xwr473nststk9jl56qeat62k","2022-10-12T12:03:01Z",0,{"$f":"NOT(ISNA(VLOOKUP(A85,Own!A:A,1,FALSE)))","v":false}]
["Writing NFT - 訊息／生命之花：七方銀河祈禱文。","https://liker.land/nft/class/likenft16pae0junf38lztarz0amh8peknju7zzrky9jm3p6m3jh6k7j007sm9l57j","2022-10-12T11:58:28Z",0,{"$f":"NOT(ISNA(VLOOKUP(A86,Own!A:A,1,FALSE)))","v":false}]
["Writing NFT - 《圖解區塊鏈》原理篇 Part 1","https://liker.land/nft/class/likenft1xnrr6pmp8fkmll5khnw68mvf9322vygs4300096vjsuvxh6kg8gsc9gg76","2022-10-12T11:45:52Z",996,{"$f":"NOT(ISNA(VLOOKUP(A87,Own!A:A,1,FALSE)))","v":false}]
["Writing NFT - [同志地圖]龍星 long sing 卡拉OK吧","https://liker.land/nft/class/likenft1t6xhgdusym03fqkha7clyn93c9vsa9jqp7qvf24seps8durk46cstna989","2022-10-12T11:08:23Z",0,{"$f":"NOT(ISNA(VLOOKUP(A88,Own!A:A,1,FALSE)))","v":false}]
["Writing NFT - 《圖解區塊鏈》起源篇","https://liker.land/nft/class/likenft1ek32uwg7tatm5ff7350vttrx747s6msx3wdr48reacdlxyvve8assnzmht","2022-10-12T10:57:13Z",994,{"$f":"NOT(ISNA(VLOOKUP(A89,Own!A:A,1,FALSE)))","v":false}]
["Writing NFT - [同志地圖]龍星 long sing 卡拉OK吧","https://liker.land/nft/class/likenft1ffqgnzh6jsaae27k4pl935xs0w6humjz0xnurmedz9ky0jp96qsq9er66w","2022-10-12T10:06:25Z",0,{"$f":"NOT(ISNA(VLOOKUP(A90,Own!A:A,1,FALSE)))","v":false}]
["Writing NFT - MEME NFT 的由來以及趨勢","https://liker.land/nft/class/likenft10tp9m6u80tug9uftm94z2wnerxu44d90thcwdctcrs00xe45ygtqyxqnzm","2022-10-12T09:49:50Z",994,{"$f":"NOT(ISNA(VLOOKUP(A91,Own!A:A,1,FALSE)))","v":false}]
["Writing NFT - [同志地圖]龍星 long sing 卡拉OK吧","https://liker.land/nft/class/likenft1nh7ra2vr6es2uqc4z3m0l49d6mre7c4ht8hu83fgnseax88jr6zsukv3rg","2022-10-12T09:45:58Z",0,{"$f":"NOT(ISNA(VLOOKUP(A92,Own!A:A,1,FALSE)))","v":false}]
["Writing NFT - 和傑森的探險","https://liker.land/nft/class/likenft18rstzlm74fddh69g6tmprmcvjssqrn98uj39fwa3ckgy2p7jwhqs0z6zng","2022-10-12T09:00:52Z",497,{"$f":"NOT(ISNA(VLOOKUP(A93,Own!A:A,1,FALSE)))","v":false}]
["Writing NFT - 逝去的時代  時代彩虹發行的同志電影","https://liker.land/nft/class/likenft1kuem0xrsf8r8s4tjwf9pt5q6ctmdg5m4kaynlcewgr57ntd0newq2nh44e","2022-10-12T08:52:23Z",497,{"$f":"NOT(ISNA(VLOOKUP(A94,Own!A:A,1,FALSE)))","v":false}]
["Writing NFT - 如何保護和保存自己的 NFT?","https://liker.land/nft/class/likenft150uevfrq32qzxs64yc7xmwyva6jqmyd3f3emdkfazgw3gnrtjx7sytjuck","2022-10-12T08:04:09Z",992,{"$f":"NOT(ISNA(VLOOKUP(A95,Own!A:A,1,FALSE)))","v":false}]
["Writing NFT - [同志地圖]朋群生活會館","https://liker.land/nft/class/likenft1v3kaulac0mznax7zaz63gaw4vlpzq9093wacx3r0d9jedzdtys8q2jcal8","2022-10-12T08:02:58Z",1994,{"$f":"NOT(ISNA(VLOOKUP(A96,Own!A:A,1,FALSE)))","v":false}]
["Writing NFT - Matters Discord【🌠︱nft-討論區】卸任駕駛員 & 總結","https://liker.land/nft/class/likenft15zugwfgc9hqjm2gmn63xw6rmk3pt38yh0m7p766qy6vjjhj6cgcqp7g9jm","2022-10-12T07:43:36Z",998,{"$f":"NOT(ISNA(VLOOKUP(A97,Own!A:A,1,FALSE)))","v":false}]
["Writing NFT - NFT 交易平台 X2Y2 推出 NFT 點對點 (P2P) 借貸服務","https://liker.land/nft/class/likenft175v9j0ems2f4fqdl403wadhue5lvc4kup6j6kal9ucxhjx65zh7qp3j8qa","2022-10-12T07:28:23Z",992,{"$f":"NOT(ISNA(VLOOKUP(A98,Own!A:A,1,FALSE)))","v":false}]
["Writing NFT - 〔露營體驗〕一般露營VS豪華露營〔台灣山嵐露營區、沖繩南馬梅自然度假酒店〕","https://liker.land/nft/class/likenft1yjk2eeuyjfsuxqc0er9wpndzfsd48q29sjw264q04u283f2nc5qqnc3hew","2022-10-12T06:10:50Z",500,{"$f":"NOT(ISNA(VLOOKUP(A99,Own!A:A,1,FALSE)))","v":false}]
["Writing NFT - NFT 出版計畫 Project 2030","https://liker.land/nft/class/likenft16f2z76s9c2ecyqdz929huydwg24nf2qhf6u2kjk6cvmhmayvk2zqpeh32k","2022-10-12T05:03:38Z",1994,{"$f":"NOT(ISNA(VLOOKUP(A100,Own!A:A,1,FALSE)))","v":false}]
["Writing NFT - Invidious──YouTube的替代前端","https://liker.land/nft/class/likenft1k483qpcg5lqzeyrn0sp77rgzdlhn6v2qur5ryhfp96kqmxgs608qqwjlyv","2022-10-12T01:00:43Z",1500,{"$f":"NOT(ISNA(VLOOKUP(A101,Own!A:A,1,FALSE)))","v":false}]

{"sheet":"Own","index":1,"n_rows":62,"n_cols":7,"rows_kept":62,"cut":false,"hidden":false,"merged":[]}
["NFT Name","NFT Link","ISCN",null,null,"Address","like13f4glvg80zvfrrs7utft5p68pct4mcq7t5atf6"]
["Writing NFT - 關於 Writing NFT 的發行與使用","https://liker.land/nft/class/likenft103jlmvqgst6jgt2u5jhpgzmp0przzuwsmx8pdgflardulssj5z0sfkj3xe","iscn://likecoin-chain/nmgCduHPyOtq4CyxGyMKbxkAZrkM9ddxDDL7ZEgFtXI"]
["Writing NFT - 光影紀實｜2019年六四30周年燭光晚會【圖輯】","https://liker.land/nft/class/likenft105tuauwkptxjwr7s3j2k40hf7yxtpcvcxjnmkrx4f8dwfgy6xk7s0tyhk6","iscn://likecoin-chain/4ONPXSP30VJSuhhPTly7JzMhZzrGvtrIClnectgNv_o"]
["Writing NFT - Cosmos 2.0：海港城市、跨鏈安全與 ATOM 的新價值 - by 許明恩 - 區塊勢","https://liker.land/nft/class/likenft10eu3x85hdsmft5tsjvx7vf23xufkkq87uq5mav9l6pr8yx6lpueq5h52md","iscn://likecoin-chain/eEwi3cPVRzsjG5zus2hejHQrdT932ot_auJ4V62Z2vc"]
["Writing NFT - 從母姓","https://liker.land/nft/class/likenft10n50zwhu2xa5me7qqgt7vtl686jwr80paznu9ct26pyxx4eesk3s07wl4j","iscn://likecoin-chain/ciWfNOGCXFqGQ3xv5ZAUYrSYHrgqOqUafccnWkckV78"]
["Writing NFT - Start with WHY - 初創筆記（一）","https://liker.land/nft/class/likenft12x4gh3ne3kc3m4purgv42kwr0lum03cj4n357phrmel6svawf9usqhl5gz","iscn://likecoin-chain/4AQRp5wBckNdmJFzwuulSHpCAEe-BBUQ8JEscGOXreQ"]
["Writing NFT - 降低 Web3 操作門檻：LINE 推出 NFT 平台、Robinhood 打造免手續費錢包 - by 許明恩","https://liker.land/nft/class/likenft137q4n3vy7cw2h7n4778lkmm2czyrjzzhfdgys783w4vdmlvttvkszchchx","iscn://likecoin-chain/QVe4mSWZjtwF8qF6_tR8-X2vVuyuQZFtQOJTTjNtbMQ"]
["Writing NFT - ETHPoW：跟著投機者佈局以太坊合併 - by 許明恩 - 區塊勢","https://liker.land/nft/class/likenft13pwvgcs4td0k4n4c2uqw47060ju7nrfpnkvkst34ruaua5nrarxsshsl9s","iscn://likecoin-chain/jKpXcvZXdSf3GCLretc4mqYnxTjm2f3c8TpAH2CZgJU"]
["Writing NFT - 「逝去的時代」台北三溫暖 Taipei Sauna","https://liker.land/nft/class/likenft15mmuldd6gfywsaqjnwqlp7xm3fckjyw0ejm8lc0ujqs6av8x9v3s8ndcvz","iscn://likecoin-chain/9LaI9Co3OAd1oa-XStTXPbRjyYfmfT2kU-JxlFRxEe4"]
["Writing NFT - 50多歲才開始做自媒體，會不會太遲？","https://liker.land/nft/class/likenft16hnygp7r2wzaatlqk4gpteweq4k7gjzvzsn7g6xgsv5jqr3mjrfqmkhr27","iscn://likecoin-chain/YYk1X0Eyh7ILHAg48m4mADoHKJsU6kmw5YmCiBJvKhA"]
["Writing NFT - 2022 蚵寮漁村小搖滾 - Kuàn-ka (@ttt50966)","https://liker.land/nft/class/likenft16mx4vppy9lgfg8n4hrlhfedj3ceaepsr69znjdahpumnsezckz9s3tshxx","iscn://likecoin-chain/4VKgypsVibPEKt_LZ7JeN5cVhXYS7wb3BVXgr6kLEwQ"]
["Writing NFT - 我在廢墟的窗戶看到不一樣的風景","https://liker.land/nft/class/likenft17culfdavvpphwhdpv5k73kdgqxudz7q0fjl8mx09w6udn0mrgu9sfzp8kj","iscn://likecoin-chain/0OGocKXsbYUqiJKcpAWH-I8kPr3kPGjCVWnwBAFubw0"]
["Writing NFT - 那些年我所追求的音樂...［音樂教我的事］專欄回顧_Beethoven : Concerto pour piano n°3","https://liker.land/nft/class/likenft17gqws99nmeg75f6z6mvqn8d9ey49z5p8ukp8s9mdd6ajfeg89u0qaxjvvm","iscn://likecoin-chain/QT3XyS_MXiY7vAfz4BUXB7JP43HeB6DqmLEiHUhJLJs"]
["Writing NFT - Phoebe & Kelvin 's wedding ","https://liker.land/nft/class/likenft17uxey69ps06vxzavn32fc2wpyxmhrv6a3lyz5d5d40qajeqneg8qx8h586","iscn://likecoin-chain/bKO7tAqA1r-j8bfwh_Bi0axjb7vgo_qkM1so7YNAtGU"]
["Writing NFT - 〔旅行到芬蘭〕哈士奇雪橇體驗","https://liker.land/nft/class/likenft17wejlzts2ne4s4t4xf75c42y5nty6vdqhcdz93phyjartjfrtajs32alts","iscn://likecoin-chain/NHy5d1RXsP4B3sIjeBG6iWKynWqcJHoXLHdzxJGRXXc"]
["Writing NFT - LikeCoin推出「Writing NFT 計畫」一鍵轉文章為NFT收藏、推動去中心化出版","https://liker.land/nft/class/likenft18nf6zu6grjxc3ym97qxjzxfaqvn8j689gnnragrfwrvvc8mn6axqx74d8c","iscn://likecoin-chain/0dy8t-GOR1nHAflNpze6s1vse-xKBewTO5aJsxI5Pws"]
["Writing NFT - 探索廢墟時，我看到隱藏的都市吶喊聲","https://liker.land/nft/class/likenft1957qy6zk8yd3653qxxtkfusvflxlc846jpnagu46kk37phznncrss2pdd7","iscn://likecoin-chain/dF-TlCE33g-xwcBAv6usdAll-Pna6fzLy1Y47qyezzs"]
["Writing NFT - 星巴克推出 NFT 忠誠度計畫：Polygon 是假議題、開放生態系優勢 - by 許明恩 - 區塊勢","https://liker.land/nft/class/likenft19mqnukxuy9qdfwqj6zpt2zyc5hzp9yfvcqgudezuul8cg4yh3jsqyqtfra","iscn://likecoin-chain/H0sO1kihReRHRKEFYGukAF7xqIt12ahAaISTQLZlAqc"]
["Writing NFT - 文字作品的NFT搜集與分享","https://liker.land/nft/class/likenft1a59d5ews2fjz5805yfp0fq22rark72krzh57k94df85nls6se8ws74uqj2","iscn://likecoin-chain/fGffBFCsxZHfSbaaksLBvLTJGzVtPMVu4Y7GtXqBXto"]
["Writing NFT - Liker Social：最被低估的 SocialFi 社群平台 - by 許明恩 - 區塊勢","https://liker.land/nft/class/likenft1arnqgraryg3s2jychzd8hvkxy2835lsydy9w3l24qa0xef68vudqfutmef","iscn://likecoin-chain/E-4ofrcX_TAYxbn7xLFK4WbXIhUsTVmC26wwKtaRKNI"]
["Writing NFT - 在旅途中尋找最珍貴的禮物 - 第一章","https://liker.land/nft/class/likenft1cytuck2sq7vl84dw7qak5ya0d7v0t2ys456n73pp9vqw9enka4tqjqm0q5","iscn://likecoin-chain/sdETbmFmmdkIU_yd3hKfj5-zp0LPhFQdLx7ka8VtIOQ"]
["Writing NFT - 讀後／小令《監視器的背後是彌勒佛》與若斯諾·孟《喜劇收場》","https://liker.land/nft/class/likenft1ddu90kxsu7ht8u8t94850zpcfcmnw5prkwregrm6pspaugtjw94qsse58d","iscn://likecoin-chain/a6Vyw_JhbtuOrfUckwDr5URAyq-0usiPsNTXFmE3Nd4"]
["Writing NFT - 區塊勢成為 LikeCoin 的區塊鏈驗證者 - by 許明恩 - 區塊勢","https://liker.land/nft/class/likenft1djs2rwaesefs9wxfg9hxk76psd4vdggkkkrzcv06dzksejve5s3se5mlxh","iscn://likecoin-chain/TiieWo8sD_DPNuvUo9LKP4BUpZMRhCkr9ha2Ch4gXro"]
["Writing NFT - 自己香港自己救 — 全民抗疫之自製搓手液","https://liker.land/nft/class/likenft1faqzun5eucvh07j0fnrk7wehs966y32wujxrfuvlkzwdyfg03h6qnrscau","iscn://likecoin-chain/pf-ANgzKBSkXhrm59btJ5q8hdqD7gaz5gsbkolk-QyI"]
["Writing NFT - 哩哩扣扣 #18 Writing NFT，與熊市推薦專案","https://liker.land/nft/class/likenft1gakr849rsely9g0qrqpfxcqx09rsn8uhuj0rj8g2f4w6pdzajauses8wu3","iscn://likecoin-chain/5EjIdwyqSOWBY94TSSXEMP_OaEmFKmbTAPJAhQq9g-s"]
["Writing NFT - 哩哩扣扣 #19 金鏟子就是聖杯","https://liker.land/nft/class/likenft1gdsj60q72ed5s52x7ccu5n8hgh3vp7ys26pdatlh6me9xh8tmn2sj8zwcs","iscn://likecoin-chain/xr_Z0GUgsa8nXt9zPKGmln_p9qv_22M4AORaoKf2nLw"]
["Writing NFT - 摸著石頭過河 - 初創筆記（二）","https://liker.land/nft/class/likenft1h2j5u9xaduv56w0uhyh4afzcvzn2ynp9p43zm7u9hww9auvy756qhga9rh","iscn://likecoin-chain/j2kFmpf_lr8lrV3dIcVoit0OHlRhYdHs5ZDMmwFu2CE"]
["Writing NFT - Sudoswap：會動態調整售價的 NFT 自動販賣機 - by 許明恩 - 區塊勢","https://liker.land/nft/class/likenft1jg6n8ema53fvevl0r5g7qv4xfupdn6dzpsll269g0tjme70d3teq97hu6h","iscn://likecoin-chain/SZATEuOAz1ESImyuic6VFQ4LG_EZpV68ae4hiUJCX44"]
["Writing NFT - LikeCoin Chain NFT Module Upgrade, StarFerry Overview","https://liker.land/nft/class/likenft1jvywpl0f0zndhm6h8sp44esaj88mrkew226wv30ymeq5pnvux4tq760qd7","iscn://likecoin-chain/uioz4L768qWnVId4uGVnzJqVEXWYo9YBVHAftZNjZWk"]
["Writing NFT - ECHO：會跟著文章跑、評論永存網路的去中心化留言區 - by 許明恩 - 區塊勢","https://liker.land/nft/class/likenft1k0xxf2yw755uymehkxvd3vteumm4jalmmy4k3g8g0e9ghdgwne2s50r45v","iscn://likecoin-chain/10S6m2CY1r5yXw1gUW8sGH1zBqxZo2EhRsMXJh3JdeM"]
["Writing NFT - 花と動物と人との架け橋プロジェクトセカンドチャレンジ | 神戸どうぶつ王国","https://liker.land/nft/class/likenft1kj2nkp844uj2d6nlgw2ypalruww0h36ja9lca0g2gz2pl3hjhvwq48pr6k","iscn://likecoin-chain/V2QZwU2LxKP5KVIKRuzcKukUXPythv8KbP4GvuHln1k"]
["Writing NFT - 【文化籽】野餐+看書+音樂　向詩遊 異鄉的也斯致意","https://liker.land/nft/class/likenft1lpfr5j88ss6valufrxd03v3zva6fyzr6aa6hxwwf444aqy87ptsqfp0f74","iscn://likecoin-chain/wo_Yh7RnUDvRHBq9-2ugan1i3nxVs6DnJjZU47M19g0"]
["Writing NFT - 二訪武藏小杉。在相同中發現不同","https://liker.land/nft/class/likenft1mac3g66wrml4w66uxspjxp59gkhye9gtv5wmxcxxhc99029q48esp5xldh","iscn://likecoin-chain/I87FFWZbzVZ4etSlqastKHVoEV_VyeZCfIKwWgyxNNU"]
["Writing NFT - 蘋果可望解禁 NFT：不能買的交易市集、不准躲的蘋果稅 - by 許明恩 - 區塊勢","https://liker.land/nft/class/likenft1msflmn4xndf83avhmvzzyavtssr8yc7qqw42ku553n0vfddx22wsjdz5m9","iscn://likecoin-chain/RkkUHKPxnxWPwonKhZWY5E5ZpoufLf6TPuqeOeyQSF8"]
["Writing NFT - 自閉症女兒爸爸的心聲","https://liker.land/nft/class/likenft1pevp43l00qturkc0wsh35uwvu2rh9wm3mfu83zmhtv7dhkallq9snqtnw3","iscn://likecoin-chain/lS-K_OZUopZPM-T9EFyf7cGs5qxegyTbxPbrQGxB9wI"]
["Writing NFT - LikeCoin AMA 講稿：在人生的最後階段，我將會以甚麼方式去記錄自己的心路歷程呢？ - 米高與小狗ThankYou (@DrThankYouC)","https://liker.land/nft/class/likenft1plaq9s4pkrrsumm87whg0hv03gy982xpdct0apg5c4v8w94w6w2s4gvjhv","iscn://likecoin-chain/26_cPlyrPe-ND1sCxuTo6tztLBt5_to70INUucWelII"]
["Writing NFT - 詩／夜半的弓道教室","https://liker.land/nft/class/likenft1q6n3f7qalut8c99cu5s6lnqaf9pe8mw832ex4uskt922mawsn0aqm5cyj8","iscn://likecoin-chain/AufyS6RX35vzMc-OLITYDhhKpcTmKyFvCyEAUX13C4Q"]
["Writing NFT - 【領取通知】中秋限定！元宇宙第一款 NFT 柚子帽 - by 許明恩 - 區塊勢","https://liker.land/nft/class/likenft1qp994p7ym97g3d2qvph260t6c42dsfxsrxdku055qzkh5hennmssag76zc","iscn://likecoin-chain/BmqLurO6Qfr6pdOvUE0EvuR1aukujMCm9In2qLFspcs"]
["Writing NFT - 沒事找事幹，探索香港的都市廢墟","https://liker.land/nft/class/likenft1r4np3ex4ny7xtqsc2kxhf7l03xes6y8v2jenmhfnrlgue2feahcqk4xt90","iscn://likecoin-chain/7JjsdY-DIX_naZE4NaG0-msFTmDUGjn0ZMzvQnIXhSQ"]
["Writing NFT - Writing NFT：不到 1 元，就能以出書的規格發行數位創作 - by 許明恩 - 區塊勢","https://liker.land/nft/class/likenft1s7xk7wt5q03lsa2a87fnqfc0uny28f46s4gtnakc08qdguxlua4qxrxk7m","iscn://likecoin-chain/L3B4UZDVx_2wcpY_mJUMYkYznyr52oYotKyXPtdbNj0"]
["Writing NFT - Writing NFT：不到 1 元，就能以出書的規格發行數位創作 - by 許明恩 - 區塊勢","https://liker.land/nft/class/likenft1s7xk7wt5q03lsa2a87fnqfc0uny28f46s4gtnakc08qdguxlua4qxrxk7m","iscn://likecoin-chain/L3B4UZDVx_2wcpY_mJUMYkYznyr52oYotKyXPtdbNj0"]
["Writing NFT - 小別勝新生","https://liker.land/nft/class/likenft1szjw9qkvgu0gduz4jxujyjy0t3awxau0cpll33sw35wr7xc00nuqyazdsn","iscn://likecoin-chain/RN_Jm4K0TiMSCD1V_5PW3-LlxoalI0eUWOlazDMZnB0"]
["Writing NFT - 【文化籽】一滴水的光影旅程　伍韶勁的現代大禹治水故事","https://liker.land/nft/class/likenft1t4yaad7j4ttwpmszpapa4ysae3ntv9wc8pqj3fsq3xk807enhmrs8yvxn8","iscn://likecoin-chain/H0t5YQOC4RbZSw9BJT_w6wCu5__46KLt7zs_dOBqAIQ"]
["Writing NFT - 成為舊世界改革者，還是新世界建設者？ft. Matters 共同創辦人張潔平 - by 許明恩 - 區塊勢","https://liker.land/nft/class/likenft1tjhmsgtl6ray45lngtuasg0kmp6jy74ad8hy6carm4w7angm9ftszkuyj3","iscn://likecoin-chain/Dng0YZxk875CvgYqHBbYIY78xZ3Zu_O7rfhiFHAEiJQ"]
["Writing NFT - Skiff 隱私信箱：將錢包地址變成 email 收信地址 - by 許明恩 - 區塊勢","https://liker.land/nft/class/likenft1tuz2rqmrwafu6mxuk7e9q2z9hrcxhy55yyw4hl8jcdjejh65aewsdgnlfy","iscn://likecoin-chain/U1lexSWs2bv-61gSTTxZ1gmlkDeCgHfG0NFOExbGF6k"]
["Writing NFT - 十月一日，南丫海難沉冤未雪第十年","https://liker.land/nft/class/likenft1ugcf8ykx2vrgsr5hvl40q5mhcmyqwn24rhlafsf83pv7sazwruwsnjjwz5","iscn://likecoin-chain/NHjyWbJEuz3BUGnsoknlQUeGXk5xnZjqnNHvKSPi9po"]
["Writing NFT - Tornado Cash 遭美國制裁：被洗錢污名化的隱私工具 - by 許明恩 - 區塊勢","https://liker.land/nft/class/likenft1up0f3eq6ujuryle7q9n3kawgpvr6hrqyjn53q5xdynpusvqvqzxsru7hzx","iscn://likecoin-chain/kpPYepxCS49SUXt8ilcIGnr829iOg75h09clvylPiq4"]
["Writing NFT - 在港舉行日本池坊花展　插花男借花道撫慰心靈","https://liker.land/nft/class/likenft1ux83v5g069pjtwhrezv284xwerqtc3yxkpkv46pymfuf84slamwsga6qag","iscn://likecoin-chain/jAQI6dy1QO_AVnD6cH7SFjj3X_bElmCnmK4VDxiHJwA"]
["Writing NFT - 實體與虛擬出版之間的抉擇","https://liker.land/nft/class/likenft1v0n75ttfhhj2znxf2grmvefqavvj7qy6sut62asdk7k4nkp5yuzqnvdlm3","iscn://likecoin-chain/HixJtG4N7azQH2bMahH0MGmu0M2vlsc_lM54cZDOL-c"]
["Writing NFT - 〔旅行到芬蘭〕極光小木屋．追極光行程","https://liker.land/nft/class/likenft1vce25h4mmyq75ugsgvz6m3gwqknz8lvz3wf04ut6qv30t7ds3m2snpuysr","iscn://likecoin-chain/ET53mXdmjYBC19IKeXBUA0_T4-mcBy6rrVRQoJMG1Zs"]
["Writing NFT - 【文生書評】許三觀賣血記---荒謬的群像","https://liker.land/nft/class/likenft1vpfd0qdk2az2uh56rj36k5k7uh93safn3azrq6c78975jh2smv2stvaq9z","iscn://likecoin-chain/1oxJgpg5o-r6EbqNXXa_eTMF7TML6fld80xGGlA6KbU"]
["Writing NFT - 第二宇宙辭典，以及虛擬的真實化","https://liker.land/nft/class/likenft1w23r4068dwl9ytzxr2f4cyms3smgstt63cuhpaphph72pcm9gywqysxl6x","iscn://likecoin-chain/ur1pSouk9mtLoxNVjX6nqkD7rdWsEW5nh5CH02klteg"]
["Writing NFT - Flamenco舞塔羅 | 近期在愛情中有什麼訊息要給你/妳呢?","https://liker.land/nft/class/likenft1wprjpwkax87hxycy4dy2pc65zffx3ls5d7834f5xhng8skq00evspw5f3a","iscn://likecoin-chain/3KJpENEMCxyNCBJXvGH9j_hGmTT69rrRy9suH_Rgddk"]
["Writing NFT - [馬雅] 藍猴波符13天訊息-玩一玩就學到!","https://liker.land/nft/class/likenft1wxzuxkqxyrzyujnc3h34vk2p80fl806p22scnwv9dtc972gvunzs5qt30h","iscn://likecoin-chain/hjPyCdPleQB3NfRA5xPNxnZld48ZXSiFvql5Ee_MACk"]
["Writing NFT - 【AMA】拆掉付費牆可行嗎？為何區塊勢要從 Web2 升級到 Web3？ ft. LikeCoin","https://liker.land/nft/class/likenft1x0re7dcnhuqc7pga85yqy298u4hl6egdmwwdft5c4z7t33x0melq0tf55x","iscn://likecoin-chain/I8ET4UYmk_Ssks4J_tiQE3SsPdrwjz9OpTN4UIBODPM"]
["Writing NFT - BendDAO：元宇宙銀行的擠兌危機 - by 許明恩 - 區塊勢","https://liker.land/nft/class/likenft1x99fupsmu9ccr3w00cemeyhuttx98jkzwgtc56fwu5zyp93kcrcsm0kagj","iscn://likecoin-chain/hMJedzqjI3E1v9ErtFK-NqWg03BBot_0_vThuCrwlw4"]
["Writing NFT - （導讀）偵探推理界的「瑪麗皇后峰」：柯南．道爾 - 私の部屋，世界、歷史、人的万華鏡。 (@chtewu)","https://liker.land/nft/class/likenft1xnvaua2lzp6gwr6ehajxcfgdwfyffxk8yxr5fxm24u4cysj3qtaslz4cp3","iscn://likecoin-chain/4A_x5-pLlWvVSN5UhMyWzx1o6qXMAH98WGLvIK5gVfY"]
["Writing NFT - 會員推薦計畫上線｜MEV：鏈上的快閃大對決！如何替 ETH 質押者創造翻倍收益？ - by 許明恩 - 區塊勢","https://liker.land/nft/class/likenft1xy8ucnej8m6xln6rs9q38t0xd28adlccetwu9k56w3wggegtee0scn9fn5","iscn://likecoin-chain/NzQb54sjX4OQxU9oNbzaF65ZWHg4auE_JnysTEnZk9w"]
["Writing NFT - 【字裏凡間】跑步讀書會 談神說性無禁忌","https://liker.land/nft/class/likenft1ysujlewp3n3gfslr032pk77z6d44usx793au4uu4ye6uy798at4sm8lk25","iscn://likecoin-chain/0ECKZY6AmMNGnHXb1oapU-ouWbyKuFi-cfsPRatniMY"]
["Writing NFT - 以太坊合併完成，正式邁向 PoS！V神：這是 ETH 生態歷史性的ㄧ刻","https://liker.land/nft/class/likenft1z2274swtcheax9acjuzfhlncgqk8e6pfwc4pt00m8v2yk8zwpz8qf7dn7j","iscn://likecoin-chain/gipFtnp-XCO0sFhjkR6g5Qknh1UPowg9bjjQPO_GC08"]
["Writing NFT - 現代桌上電腦主機介紹","https://liker.land/nft/class/likenft1znx5ws5nkz7xvmkp7cyjyxm4ld35tlr4u8fszs44kcug6rd8zczsqcjnx7","iscn://likecoin-chain/zYfVoZ-psz0FWPI4SKN8afSSEehCNZJOfks4SvIZqlE"]
["Writing NFT - 個人電腦簡介","https://liker.land/nft/class/likenft1zrnjv2w6gwa53x576s3qlqlvhwy3uydd8ynccwurcx9weu8j0hnshzexgl","iscn://likecoin-chain/KIx4LPNuV6Ma3Pbd1AEDoSneNL6L7QAs-Ifb0fz35Js"]

{"sheet":"Sheet1","index":2,"n_rows":3,"n_cols":2,"rows_kept":3,"cut":false,"hidden":false,"merged":[]}
["ckxpress","like13f4glvg80zvfrrs7utft5p68pct4mcq7t5atf6"]
["許明恩","like128l3t64trehh8jnr8klqaj8c2sug6wlg4jxqf8"]
["Pazu薯伯伯","like1fph6p38zvhhdgp7sm8zc258vk2p52ganzck5tr"]